bitfinex/quotes_BTCUSD_20240819
["timestamp","ask_amount","ask_price","bid_price","bid_amount"]
[1724038352238,0.00976878,58770.0,58769.0,0.2612142]
[1724038352440,0.00976878,58770.0,58769.0,0.1421042]
[1724038353859,0.00976878,58770.0,58769.0,0.2612142]
[1724038355140,0.00878106,58770.0,58769.0,0.2612142]
[1724038355350,0.00878106,58770.0,58769.0,0.4994342]
[1724038355555,0.000822,58770.0,58769.0,0.90920874]
[1724038360316,0.00180972,58770.0,58769.0,0.90920874]
[1724038364774,0.00180972,58770.0,58769.0,0.4994342]
[1724038365177,0.00180972,58770.0,58769.0,0.2612142]
[1724038365636,0.00980752,58770.0,58769.0,0.2612142]
[1724038365916,0.00180972,58770.0,58769.0,0.2612142]
[1724038366044,0.00980752,58770.0,58769.0,0.2612142]
[1724038366843,0.00980752,58770.0,58769.0,0.1851142]
[1724038368108,0.00180972,58770.0,58769.0,0.1851142]
[1724038368515,0.00180972,58770.0,58769.0,0.4233342]
[1724038368720,0.00180972,58770.0,58769.0,0.5395342]
[1724038369038,0.000822,58770.0,58769.0,0.6223342]
[1724038371834,0.00180972,58770.0,58769.0,0.6223342]
[1724038372824,0.00987716,58770.0,58769.0,0.6223342]
[1724038373082,0.00180972,58770.0,58769.0,0.6223342]
[1724038373467,0.00987716,58770.0,58769.0,0.6223342]
[1724038374944,0.00888944,58770.0,58769.0,0.6223342]
[1724038375544,0.000822,58770.0,58769.0,0.6223342]
[1724038376618,0.000822,58770.0,58769.0,0.8605542]
[1724038376823,0.000822,58770.0,58769.0,1.27032874]
[1724038380540,0.000822,58770.0,58769.0,0.7443542]
[1724038382828,0.00180972,58770.0,58769.0,0.7443542]
[1724038385434,0.00180972,58770.0,58769.0,0.5984542]
[1724038385641,0.000822,58770.0,58769.0,0.5984542]
[1724038389400,0.00180972,58770.0,58769.0,0.5984542]
[1724038390541,0.000822,58770.0,58769.0,0.5984542]
[1724038391166,0.000822,58770.0,58769.0,0.7360542]
[1724038391967,0.000822,58770.0,58769.0,1.16882874]
[1724038392193,0.0004124,58777.0,58776.0,0.71563444]
[1724038392435,0.0004124,58777.0,58776.0,1.84853723]
[1724038392665,0.0004124,58777.0,58776.0,1.79416354]
[1724038393116,0.0004124,58777.0,58776.0,1.79516354]
[1724038393346,0.0004124,58777.0,58776.0,1.62417298]
[1724038393605,0.0004124,58777.0,58776.0,1.70050157]
[1724038394313,0.0014124,58777.0,58776.0,1.68403498]
[1724038394559,0.0024124,58777.0,58776.0,1.87023498]
[1724038395014,0.0024124,58777.0,58776.0,1.86723498]
[1724038395256,0.0024124,58777.0,58776.0,1.55422654]
[1724038395489,0.0024124,58777.0,58776.0,1.56428731]
[1724038396428,0.0024124,58777.0,58776.0,1.56724175]
[1724038396651,0.0024124,58777.0,58776.0,1.59024175]
[1724038397141,0.0024124,58777.0,58776.0,1.59124175]
[1724038397332,0.0024124,58777.0,58776.0,1.82943375]
[1724038398393,0.0024124,58777.0,58776.0,2.06762575]
[1724038398596,0.0024124,58777.0,58776.0,1.82943375]
[1724038399576,0.0024124,58777.0,58776.0,1.82843375]
[1724038400016,0.0024124,58777.0,58776.0,1.82943375]
[1724038403706,0.0024124,58777.0,58776.0,1.83665375]
[1724038403907,0.0024124,58777.0,58776.0,2.07484575]
[1724038404109,0.0024124,58777.0,58776.0,1.83665375]
[1724038404335,0.0024124,58777.0,58776.0,1.83765375]
[1724038405126,0.0024124,58777.0,58776.0,1.83369931]
[1724038405376,0.0024124,58777.0,58776.0,1.57250731]
[1724038406579,0.0024124,58777.0,58776.0,1.03628731]
[1724038406931,0.0024124,58777.0,58776.0,0.78803454]
[1724038408436,0.0024124,58777.0,58776.0,1.01422654]
[1724038408437,0.0014124,58777.0,58776.0,1.01422654]
[1724038408657,0.0014124,58777.0,58776.0,1.11422654]
[1724038409292,0.0014124,58777.0,58776.0,1.40462654]
[1724038409504,0.0004124,58777.0,58776.0,1.39562654]
[1724038409718,0.0024124,58777.0,58776.0,1.41562654]
[1724038409948,0.0014124,58777.0,58776.0,1.40462654]
[1724038410149,0.0014124,58777.0,58776.0,1.40662654]
[1724038410457,0.0024124,58777.0,58776.0,1.41462654]
[1724038411593,0.0024124,58777.0,58776.0,1.47562654]
[1724038412125,0.0024124,58777.0,58776.0,1.41462654]
[1724038412344,0.0024124,58777.0,58776.0,1.17643454]
[1724038413080,0.0805124,58777.0,58776.0,0.019]
[1724038413493,0.0805124,58777.0,58776.0,0.376288]
[1724038413905,0.08050012,58777.0,58776.0,0.357288]
[1724038414133,0.07950012,58777.0,58776.0,0.357288]
[1724038414347,0.08050012,58777.0,58776.0,0.368288]
[1724038414793,0.08050012,58777.0,58776.0,0.366288]
[1724038416106,0.08050012,58777.0,58776.0,0.367288]
[1724038416311,0.08050012,58777.0,58776.0,0.008]
[1724038416622,0.08150012,58777.0,58776.0,0.009]
[1724038416826,0.08050012,58777.0,58776.0,0.009]
[1724038417144,0.08150012,58777.0,58776.0,0.016]
[1724038417346,0.14640012,58777.0,58776.0,0.007]
[1724038417547,0.07678772,58776.0,58775.0,0.119098]
[1724038419178,0.07678772,58776.0,58773.0,0.119101]
[1724038419377,0.00098772,58773.0,58772.0,0.35731]
[1724038420571,0.00198772,58773.0,58772.0,0.36731]
[1724038420799,0.07778772,58773.0,58772.0,0.129104]
[1724038420998,0.07878772,58773.0,58772.0,0.018]
[1724038421376,0.26068972,58773.0,58772.0,0.018]
[1724038422165,0.14158772,58773.0,58772.0,0.018]
[1724038424199,0.14158772,58773.0,58772.0,0.137104]
[1724038424448,0.002,58773.0,58772.0,0.436412]
[1724038424673,0.002,58773.0,58772.0,0.67462]
[1724038429015,0.1646456,58782.0,58778.0,0.119092]
[1724038429223,0.1646456,58782.0,58773.0,0.238202]
[1724038429224,0.184387,58781.0,58774.0,0.238196]
[1724038429438,0.0653,58779.0,58775.0,0.119097]
[1724038429640,0.0653,58779.0,58772.0,0.018]
[1724038429854,0.52558584,58786.0,58770.0,0.0009042]
[1724038429855,0.119099,58775.0,58770.0,0.0009042]
[1724038430057,0.119099,58775.0,58770.0,0.1200112]
[1724038430456,0.1831,58774.0,58770.0,0.0009042]
[1724038430659,0.119105,58772.0,58770.0,0.0009042]
[1724038430866,0.238205,58773.0,58770.0,0.0009042]
[1724038431068,0.119104,58772.0,58770.0,0.0009042]
[1724038431357,0.119106,58771.0,58770.0,0.0009042]
[1724038431679,0.183106,58771.0,58770.0,0.0009042]
[1724038431898,0.421318,58771.0,58770.0,0.0099042]
[1724038432060,0.496318,58771.0,58770.0,0.0099042]
[1724038432256,0.496318,58771.0,58770.0,0.0009042]
[1724038432753,0.496318,58771.0,58770.0,0.0029042]
[1724038433106,0.496318,58771.0,58770.0,0.0119042]
[1724038433312,0.496318,58771.0,58770.0,0.0009042]
[1724038433513,0.496318,58771.0,58770.0,0.0029042]
[1724038433514,0.73453,58771.0,58770.0,0.0029042]
[1724038433725,0.73453,58771.0,58770.0,0.0059042]
[1724038433892,0.73453,58771.0,58770.0,0.0029042]
[1724038434089,0.75120749,58771.0,58770.0,0.0029042]
[1724038435314,0.75120749,58771.0,58770.0,0.0009042]
[1724038435514,0.73453,58771.0,58770.0,0.0009042]
[1724038435722,0.75120797,58771.0,58770.0,0.0009042]
[1724038435925,0.84835462,58771.0,58770.0,0.0009042]
[1724038436169,1.10324462,58771.0,58770.0,0.0009042]
[1724038437178,1.10324456,58771.0,58770.0,0.0009042]
[1724038439455,1.08656662,58771.0,58770.0,0.0009042]
[1724038439655,1.10324452,58771.0,58770.0,0.0009042]
[1724038441631,0.86503252,58771.0,58770.0,0.0009042]
[1724038443831,1.10624452,58771.0,58770.0,0.0009042]
[1724038443982,1.10824452,58771.0,58770.0,0.0009042]
[1724038444789,1.10524452,58771.0,58770.0,0.0009042]
[1724038445225,1.10824452,58771.0,58770.0,0.0009042]
[1724038446075,0.87003252,58771.0,58770.0,0.0009042]
[1724038446275,0.85335462,58771.0,58770.0,0.0009042]
[1724038446490,1.10824562,58771.0,58770.0,0.0009042]
[1724038447693,0.87003362,58771.0,58770.0,0.0009042]
[1724038448343,0.86958206,58771.0,58770.0,0.0009042]
[1724038449381,1.10779406,58771.0,58770.0,0.0009042]
[1724038450387,0.86958191,58771.0,58770.0,0.0009042]
[1724038452726,1.10779391,58771.0,58770.0,0.0009042]
[1724038452887,1.15969595,58771.0,58770.0,0.0009042]
[1724038453099,1.16169614,58771.0,58770.0,0.0009042]
[1724038453300,1.1107941,58771.0,58770.0,0.0009042]
[1724038453481,1.16169772,58771.0,58770.0,0.0009042]
[1724038453835,1.1107941,58771.0,58770.0,0.0009042]
[1724038454064,1.15869781,58771.0,58770.0,0.0009042]
[1724038454414,1.17537671,58771.0,58770.0,0.0009042]
[1724038454980,1.17837671,58771.0,58770.0,0.0009042]
[1724038455244,1.127473,58771.0,58770.0,0.0009042]
[1724038455662,1.20382606,58771.0,58770.0,0.0009042]
[1724038456108,1.4963345,58771.0,58770.0,0.0009042]
[1724038456459,2.14751882,58771.0,58770.0,2.063e-05]
[1724038456660,1.64711733,58771.0,58770.0,2.063e-05]
[1724038456859,2.14260201,58771.0,58770.0,2.063e-05]
[1724038457082,1.73034915,58771.0,58770.0,0.00102063]
[1724038457284,1.63989393,58771.0,58770.0,0.00102063]
[1724038457462,1.46513715,58771.0,58770.0,0.00202063]
[1724038457658,1.41724251,58771.0,58770.0,0.00202063]
[1724038457956,1.4651539,58771.0,58770.0,0.00102063]
[1724038458162,1.4591539,58771.0,58770.0,2.063e-05]
[1724038458365,1.4711539,58771.0,58770.0,0.00102063]
[1724038458559,1.4711564,58771.0,58770.0,0.00102063]
[1724038458824,1.4751564,58771.0,58770.0,0.00102063]
[1724038459511,1.56734269,58771.0,58770.0,0.00102063]
[1724038460070,1.55534269,58771.0,58770.0,2.063e-05]
[1724038460301,1.56734269,58771.0,58770.0,2.063e-05]
[1724038460515,1.57934269,58771.0,58770.0,2.063e-05]
[1724038460947,1.59034269,58771.0,58770.0,2.063e-05]
[1724038461151,1.73109947,58771.0,58770.0,2.063e-05]
[1724038461439,2.08916747,58771.0,58770.0,2.063e-05]
[1724038461592,2.10116747,58771.0,58770.0,2.063e-05]
[1724038462709,2.08916747,58771.0,58770.0,2.063e-05]
[1724038463128,2.25394719,58771.0,58770.0,2.063e-05]
[1724038463334,2.10116747,58771.0,58770.0,2.063e-05]
[1724038463544,1.99332899,58771.0,58770.0,2.063e-05]
[1724038463754,1.6579307,58771.0,58770.0,2.063e-05]
[1724038464008,1.48847743,58771.0,58770.0,2.063e-05]
[1724038464456,1.46647743,58771.0,58770.0,2.063e-05]
[1724038465274,1.46629943,58771.0,58770.0,2.063e-05]
[1724038465894,1.47003715,58771.0,58770.0,2.063e-05]
[1724038468179,1.59736888,58771.0,58770.0,2.063e-05]
[1724038468974,1.59836888,58771.0,58770.0,2.063e-05]
[1724038469180,1.597926,58771.0,58770.0,2.063e-05]
[1724038469423,1.47058559,58771.0,58770.0,2.063e-05]
[1724038470874,1.46958559,58771.0,58770.0,2.063e-05]
[1724038471899,1.46958418,58771.0,58770.0,2.063e-05]
[1724038472686,1.47058418,58771.0,58770.0,2.063e-05]
[1724038472938,1.64413872,58771.0,58770.0,2.063e-05]
[1724038473387,1.79691697,58771.0,58770.0,2.063e-05]
[1724038473806,1.78223691,58771.0,58770.0,2.063e-05]
[1724038473941,1.79891796,58771.0,58770.0,2.063e-05]
[1724038474350,1.90904066,58771.0,58770.0,2.063e-05]
[1724038474753,2.14725266,58771.0,58770.0,2.063e-05]
[1724038474981,2.1654947,58771.0,58770.0,2.063e-05]
[1724038475151,2.33758769,58771.0,58770.0,2.063e-05]
[1724038475753,2.32090664,58771.0,58770.0,2.063e-05]
[1724038475953,2.33758877,58771.0,58770.0,2.063e-05]
[1724038476184,2.16549578,58771.0,58770.0,2.063e-05]
[1724038476444,0.124108,58770.0,58769.0,0.00088483]
[1724038476580,1.64434296,58770.0,58769.0,0.00088483]
[1724038476781,1.90525129,58770.0,58769.0,0.00088483]
[1724038476993,2.14346729,58770.0,58769.0,0.00088483]
[1724038477657,2.16546729,58770.0,58769.0,0.00088483]
[1724038478059,1.99391275,58770.0,58769.0,0.00088483]
[1724038479592,1.99285347,58770.0,58769.0,0.00088483]
[1724038480240,2.16105156,58770.0,58769.0,0.00088483]
[1724038480470,1.89983556,58770.0,58769.0,0.00088483]
[1724038481137,1.34762147,58770.0,58769.0,0.06488483]
[1724038481348,0.93332333,58770.0,58769.0,0.06488483]
[1724038481759,1.03535227,58770.0,58769.0,0.06488483]
[1724038482388,0.69510733,58770.0,58769.0,0.06488483]
[1724038482593,0.2343114,58770.0,58769.0,0.06488483]
[1724038482798,0.4615274,58770.0,58769.0,0.14118483]
[1724038483002,0.4555274,58770.0,58769.0,0.14118483]
[1724038483439,0.4605274,58770.0,58769.0,0.14118483]
[1724038483639,0.90070794,58770.0,58769.0,0.14118483]
[1724038483847,0.80871266,58770.0,58769.0,0.14118483]
[1724038484257,0.72719153,58770.0,58769.0,0.14118483]
[1724038484663,0.80371361,58770.0,58769.0,0.14118483]
[1724038485296,0.72719153,58770.0,58769.0,0.14118483]
[1724038485510,1.02146345,58770.0,58769.0,0.14118483]
[1724038485932,0.72719153,58770.0,58769.0,0.14118483]
[1724038486158,0.80371645,58770.0,58769.0,0.14118483]
[1724038486568,1.02189819,58770.0,58769.0,0.14118483]
[1724038486773,0.72719153,58770.0,58769.0,0.14118483]
[1724038487060,1.01544544,58770.0,58769.0,0.14118483]
[1724038487267,1.01544544,58770.0,58769.0,0.00088483]
[1724038487678,0.91960555,58770.0,58769.0,0.00088483]
[1724038487888,1.15782155,58770.0,58769.0,0.00088483]
[1724038488290,1.15497452,58770.0,58769.0,0.00088483]
[1724038488934,1.15497236,58770.0,58769.0,0.00088483]
[1724038491824,1.28253213,58770.0,58769.0,0.00088483]
[1724038492883,1.28457884,58770.0,58769.0,0.00088483]
[1724038493097,1.28457884,58770.0,58769.0,0.08028483]
[1724038493302,1.28457746,58770.0,58769.0,0.08028483]
[1724038495374,1.28457746,58770.0,58769.0,0.14218483]
[1724038495589,1.28457818,58770.0,58769.0,0.14218483]
[1724038495803,1.15701853,58770.0,58769.0,0.14218483]
[1724038496646,1.28457818,58770.0,58769.0,0.14218483]
[1724038497470,1.28433952,58770.0,58769.0,0.14218483]
[1724038498070,1.15678044,58770.0,58769.0,0.14218483]
[1724038498298,1.28433946,58770.0,58769.0,0.14218483]
[1724038498520,1.04612558,58770.0,58769.0,0.14218483]
[1724038498740,0.91856444,58770.0,58769.0,0.14218483]
[1724038498921,0.91833866,58770.0,58769.0,0.14218483]
[1724038499134,1.02038345,58770.0,58769.0,0.14218483]
[1724038499549,0.91833866,58770.0,58769.0,0.14218483]
[1724038499733,1.04589824,58770.0,58769.0,0.14218483]
[1724038499904,0.91833866,58770.0,58769.0,0.14218483]
[1724038500341,1.04589458,58770.0,58769.0,0.14218483]
[1724038500556,0.91833866,58770.0,58769.0,0.14218483]
[1724038501138,0.91833843,58770.0,58769.0,0.14218483]
[1724038502156,0.91833843,58770.0,58769.0,0.00088483]
[1724038502157,1.04589435,58770.0,58769.0,0.00088483]
[1724038502967,1.03003785,58770.0,58769.0,0.00088483]
[1724038503173,1.04671648,58770.0,58769.0,0.00088483]
[1724038505151,1.15737656,58770.0,58769.0,0.00088483]
[1724038505354,1.54776052,58770.0,58769.0,0.00088483]
[1724038505555,1.60742666,58770.0,58769.0,0.00088483]
[1724038505762,1.39917656,58770.0,58769.0,0.00088483]
[1724038505970,1.45884681,58770.0,58769.0,0.00088483]
[1724038506577,1.31704681,58770.0,58769.0,0.00088483]
[1724038506791,1.01916056,58770.0,58769.0,0.00088483]
[1724038507201,1.01916056,58770.0,58769.0,0.08038483]
[1724038507428,0.68094456,58770.0,58769.0,0.14348483]
[1724038507832,0.80850425,58770.0,58769.0,0.14348483]
[1724038508031,1.04672025,58770.0,58769.0,0.14348483]
[1724038508788,0.80850425,58770.0,58769.0,0.14348483]
[1724038509229,0.6809445,58770.0,58769.0,0.14348483]
[1724038509754,0.68094445,58770.0,58769.0,0.14348483]
[1724038509978,0.7829991,58770.0,58769.0,0.14348483]
[1724038510591,0.78377423,58770.0,58769.0,0.14348483]
[1724038511223,0.43158883,58770.0,58769.0,0.14348483]
[1724038511419,0.06952722,58770.0,58769.0,0.26259483]
[1724038511629,0.01850052,58770.0,58769.0,0.50081483]
[1724038512254,0.001822,58770.0,58769.0,0.50081483]
[1724038512469,0.001822,58770.0,58769.0,0.73903483]
[1724038518518,0.001822,58770.0,58769.0,1.14880937]
[1724038518951,0.001822,58770.0,58769.0,0.73903483]
[1724038522644,0.00159622,58770.0,58769.0,0.73903483]
[1724038524685,0.00159622,58770.0,58769.0,0.50081483]
[1724038524944,0.00159622,58770.0,58769.0,0.00088483]
[1724038525151,0.35892022,58770.0,58769.0,0.00088483]
[1724038526810,0.59713622,58770.0,58769.0,0.00088483]
[1724038527017,1.04299916,58770.0,58769.0,0.00088483]
[1724038527428,1.09402586,58770.0,58769.0,0.00088483]
[1724038528468,1.09397474,58770.0,58769.0,0.00088483]
[1724038529326,1.04299916,58770.0,58769.0,0.00088483]
[1724038529524,0.76208276,58770.0,58769.0,0.00088483]
[1724038529760,0.77876082,58770.0,58769.0,0.00088483]
[1724038530596,0.77876082,58770.0,58769.0,0.06628483]
[1724038530929,0.77876082,58770.0,58769.0,0.00088483]
[1724038530930,0.77875872,58770.0,58769.0,0.00088483]
[1724038531135,0.76208066,58770.0,58769.0,0.00088483]
[1724038531396,0.77875863,58770.0,58769.0,0.00088483]
[1724038531597,1.08127463,58770.0,58769.0,0.00088483]
[1724038531798,1.10669959,58770.0,58769.0,0.00088483]
[1724038532151,1.39922643,58770.0,58769.0,0.00088483]
[1724038532406,1.38254846,58770.0,58769.0,0.00088483]
[1724038532554,1.39922743,58770.0,58769.0,0.00088483]
[1724038533152,1.57804747,58770.0,58769.0,0.00088483]
[1724038533347,1.42471603,58770.0,58769.0,0.00088483]
[1724038533567,1.42471652,58770.0,58769.0,0.00088483]
[1724038534261,1.44139598,58770.0,58769.0,0.00088483]
[1724038534483,1.42471652,58770.0,58769.0,0.00088483]
[1724038534928,1.42771652,58770.0,58769.0,0.00088483]
[1724038535145,1.64048955,58770.0,58769.0,0.00088483]
[1724038535588,1.9577705,58770.0,58769.0,0.00088483]
[1724038536295,1.84656682,58770.0,58769.0,0.00088483]
[1724038536546,1.80064815,58770.0,58769.0,0.00088483]
[1724038536779,1.70738877,58770.0,58769.0,0.00088483]
[1724038536982,1.88094331,58770.0,58769.0,0.00088483]
[1724038537400,1.89194331,58770.0,58769.0,0.00088483]
[1724038537635,1.89194421,58770.0,58769.0,0.00088483]
[1724038537886,1.8222712,58770.0,58769.0,0.00088483]
[1724038538135,1.64671666,58770.0,58769.0,0.00088483]
[1724038538374,1.65771666,58770.0,58769.0,0.00088483]
[1724038539046,1.65971666,58770.0,58769.0,0.00088483]
[1724038539461,1.89732249,58770.0,58769.0,0.00088483]
[1724038539704,1.83764948,58770.0,58769.0,0.00088483]
[1724038539963,1.89156815,58770.0,58769.0,0.00088483]
[1724038540415,1.7443907,58770.0,58769.0,0.00088483]
[1724038540609,1.46714419,58770.0,58769.0,0.00088483]
[1724038540813,1.65484412,58770.0,58769.0,0.00088483]
[1724038541493,1.63816333,58770.0,58769.0,0.00088483]
[1724038541722,1.65484377,58770.0,58769.0,0.00088483]
[1724038542153,1.78222309,58770.0,58769.0,0.00088483]
[1724038542364,1.65484377,58770.0,58769.0,0.00088483]
[1724038542808,1.65384377,58770.0,58769.0,0.00088483]
[1724038543043,1.27682464,58770.0,58769.0,0.00088483]
[1724038543252,1.06365086,58770.0,58769.0,0.00088483]
[1724038543488,1.06365083,58770.0,58769.0,0.00088483]
[1724038545109,1.06364625,58770.0,58769.0,0.00088483]
[1724038545491,1.04696581,58770.0,58769.0,0.00088483]
[1724038545711,0.80874981,58770.0,58769.0,0.06278483]
[1724038545919,0.7999547,58770.0,58769.0,0.06278483]
[1724038546115,0.76568988,58770.0,58769.0,0.06278483]
[1724038546291,0.79995588,58770.0,58769.0,0.06278483]
[1724038546511,0.74901051,58770.0,58769.0,0.06278483]
[1724038549446,0.7490096,58770.0,58769.0,0.06278483]
[1724038550476,0.7490096,58770.0,58769.0,0.00088483]
[1724038550682,1.03817101,58770.0,58769.0,0.00088483]
[1724038550878,1.03817365,58770.0,58769.0,0.00088483]
[1724038551507,0.79995765,58770.0,58769.0,0.00088483]
[1724038551712,0.87637634,58770.0,58769.0,0.00088483]
[1724038551968,0.74901018,58770.0,58769.0,0.00088483]
[1724038552331,0.79995887,58770.0,58769.0,0.00088483]
[1724038553573,0.78328009,58770.0,58769.0,0.00088483]
[1724038553912,0.79995887,58770.0,58769.0,0.00088483]
[1724038554099,0.74901018,58770.0,58769.0,0.00088483]
[1724038554687,0.79995887,58770.0,58769.0,0.00088483]
[1724038555065,0.74901018,58770.0,58769.0,0.00088483]
[1724038556475,0.74901018,58770.0,58769.0,0.14878483]
[1724038557318,0.7323314,58770.0,58769.0,0.14878483]
[1724038557528,0.74900944,58770.0,58769.0,0.14878483]
[1724038557889,0.7323314,58770.0,58769.0,0.14878483]
[1724038558094,0.74900944,58770.0,58769.0,0.14878483]
[1724038560495,0.86530944,58770.0,58769.0,0.00088483]
[1724038560898,0.89958046,58770.0,58769.0,0.00088483]
[1724038561110,0.91625891,58770.0,58769.0,0.00088483]
[1724038563014,0.67804291,58770.0,58769.0,0.00088483]
[1724038563222,0.03950045,58770.0,58769.0,0.26739483]
[1724038563452,0.03950045,58770.0,58769.0,0.14828483]
[1724038563666,0.03950045,58770.0,58769.0,0.26739483]
[1724038564086,0.03950045,58770.0,58769.0,0.14828483]
[1724038564292,0.03949824,58770.0,58769.0,0.14828483]
[1724038564502,0.02849824,58770.0,58769.0,0.14828483]
[1724038564712,0.01749824,58770.0,58769.0,0.14828483]
[1724038564914,0.01849824,58770.0,58769.0,0.14828483]
[1724038565320,0.01849824,58770.0,58769.0,0.50561483]
[1724038565519,0.01849803,58770.0,58769.0,0.26739483]
[1724038565721,0.01849809,58770.0,58769.0,0.26739483]
[1724038565975,0.01849826,58770.0,58769.0,0.14828483]
[1724038566718,0.01849826,58770.0,58769.0,0.26739483]
[1724038567189,0.37582226,58770.0,58769.0,0.00088483]
[1724038567422,0.84289927,58770.0,58769.0,0.00088483]
[1724038567654,0.79190766,58770.0,58769.0,0.00088483]
[1724038567873,0.86839508,58770.0,58769.0,0.00088483]
[1724038568358,0.86739508,58770.0,58769.0,0.00088483]
[1724038568599,0.7989096,58770.0,58769.0,0.00088483]
[1724038569332,1.05924777,58770.0,58769.0,0.00088483]
[1724038569798,1.05524777,58770.0,58769.0,0.00088483]
[1724038570012,0.6970096,58770.0,58769.0,0.00088483]
[1724038570213,0.96146781,58770.0,58769.0,0.00088483]
[1724038570415,0.95946781,58770.0,58769.0,0.00088483]
[1724038570837,0.96158791,58770.0,58769.0,0.00088483]
[1724038571056,0.96558791,58770.0,58769.0,0.00088483]
[1724038572137,1.10173748,58770.0,58769.0,0.00088483]
[1724038572362,1.24685948,58770.0,58769.0,0.00088483]
[1724038572566,1.23018128,58770.0,58769.0,0.00088483]
[1724038572768,1.35779108,58770.0,58769.0,0.00088483]
[1724038573008,1.29289108,58770.0,58769.0,0.00088483]
[1724038573213,1.08588128,58770.0,58769.0,0.00088483]
[1724038573627,1.23016949,58770.0,58769.0,0.00088483]
[1724038573840,1.10255969,58770.0,58769.0,0.00088483]
[1724038574525,1.08588128,58770.0,58769.0,0.00088483]
[1724038574942,1.2134941,58770.0,58769.0,0.00088483]
[1724038575151,0.9273694,58770.0,58769.0,0.00088483]
[1724038575355,1.08464004,58770.0,58769.0,0.00088483]
[1724038575563,1.21225139,58770.0,58769.0,0.00088483]
[1724038575772,1.08464004,58770.0,58769.0,0.00088483]
[1724038575950,1.21225291,58770.0,58769.0,0.00088483]
[1724038576406,0.97403691,58770.0,58769.0,0.00088483]
[1724038576618,0.94851235,58770.0,58769.0,0.00088483]
[1724038577316,0.94851235,58770.0,58769.0,0.06548483]
[1724038577317,0.26818095,58770.0,58769.0,0.06548483]
[1724038577518,0.26818095,58770.0,58769.0,0.50511483]
[1724038577519,0.008822,58770.0,58769.0,0.50511483]
[1724038577723,0.008822,58770.0,58769.0,0.74333483]
[1724038577932,0.02549786,58770.0,58769.0,0.74333483]
[1724038578155,0.02549786,58770.0,58769.0,0.50511483]
[1724038578365,0.02549786,58770.0,58769.0,0.14778483]
[1724038578576,0.14060586,58770.0,58769.0,0.14778483]
[1724038579219,0.54383428,58770.0,58769.0,0.00088483]
[1724038579428,0.48879126,58770.0,58769.0,0.00088483]
[1724038579860,0.56534068,58770.0,58769.0,0.00088483]
[1724038580063,0.56634068,58770.0,58769.0,0.00088483]
[1724038580266,0.48979126,58770.0,58769.0,0.00088483]
[1724038580477,0.48879126,58770.0,58769.0,0.00088483]
[1724038580711,0.49179126,58770.0,58769.0,0.00088483]
[1724038580915,0.56834068,58770.0,58769.0,0.00088483]
[1724038581323,0.49279126,58770.0,58769.0,0.00088483]
[1724038581528,0.54382317,58770.0,58769.0,0.00088483]
[1724038582157,0.54282317,58770.0,58769.0,0.00088483]
[1724038582357,0.53982317,58770.0,58769.0,0.00088483]
[1724038582563,0.54482317,58770.0,58769.0,0.00088483]
[1724038582766,0.57034068,58770.0,58769.0,0.00088483]
[1724038582968,0.49379126,58770.0,58769.0,0.00088483]
[1724038583551,0.49079126,58770.0,58769.0,0.00088483]
[1724038583759,0.49179126,58770.0,58769.0,0.00088483]
[1724038583960,0.54483169,58770.0,58769.0,0.00088483]
[1724038584169,0.49379126,58770.0,58769.0,0.00088483]
[1724038584373,0.49179126,58770.0,58769.0,0.00088483]
[1724038584492,0.4751154,58770.0,58769.0,0.00088483]
[1724038584697,0.49279252,58770.0,58769.0,0.00088483]
[1724038585378,0.02149912,58770.0,58769.0,0.14408483]
[1724038585564,0.01849912,58770.0,58769.0,0.14408483]
[1724038585730,0.02049912,58770.0,58769.0,0.14408483]
[1724038586345,0.01849912,58770.0,58769.0,0.14408483]
[1724038586539,0.01949912,58770.0,58769.0,0.26319483]
[1724038586913,0.01849912,58770.0,58769.0,0.26319483]
[1724038588284,0.01849912,58770.0,58769.0,0.14408483]
[1724038588514,0.01849815,58770.0,58769.0,0.14408483]
[1724038588756,0.01849815,58770.0,58769.0,0.97785483]
[1724038588989,0.001822,58770.0,58769.0,0.73963483]
[1724038589712,0.001822,58770.0,58769.0,0.97785483]
[1724038589948,0.000822,58770.0,58769.0,0.73963483]
[1724038590183,0.000822,58770.0,58769.0,0.97785483]
[1724038590184,0.001822,58770.0,58769.0,0.97785483]
[1724038590402,0.002822,58770.0,58769.0,0.97885483]
[1724038594379,0.002822,58770.0,58769.0,1.15040937]
[1724038595323,0.002822,58770.0,58769.0,0.74063483]
[1724038597419,0.002822,58770.0,58769.0,0.26419483]
[1724038597655,0.002822,58770.0,58769.0,0.50241483]
[1724038600005,0.002822,58770.0,58769.0,0.26419483]
[1724038601040,0.002822,58770.0,58769.0,0.14508483]
[1724038601256,0.25823,58770.0,58769.0,0.00188483]
[1724038601469,0.496446,58770.0,58769.0,0.00188483]
[1724038601847,0.51312194,58770.0,58769.0,0.00188483]
[1724038602185,0.495446,58770.0,58769.0,0.00188483]
[1724038602392,0.51212201,58770.0,58769.0,0.00188483]
[1724038603449,0.51112201,58770.0,58769.0,0.00088483]
[1724038603671,0.51212201,58770.0,58769.0,0.00188483]
[1724038603895,0.51112201,58770.0,58769.0,0.00088483]
[1724038604352,0.51212201,58770.0,58769.0,0.00188483]
[1724038604591,0.51212201,58770.0,58769.0,0.14228483]
[1724038604592,0.01749801,58770.0,58769.0,0.14228483]
[1724038604821,0.000822,58770.0,58769.0,0.49961483]
[1724038605066,0.000822,58770.0,58769.0,0.50061483]
[1724038605297,0.000822,58770.0,58769.0,0.49961483]
[1724038605510,0.000822,58770.0,58769.0,0.90938937]
[1724038606223,0.000822,58770.0,58769.0,1.14760937]
[1724038606484,0.001822,58770.0,58769.0,1.14760937]
[1724038606697,0.002822,58770.0,58769.0,1.14860937]
[1724038606899,0.001822,58770.0,58769.0,1.14760937]
[1724038607105,0.001822,58770.0,58769.0,1.14860937]
[1724038607306,0.002822,58770.0,58769.0,1.14860937]
[1724038609737,0.002822,58770.0,58769.0,1.15160937]
[1724038610339,0.002822,58770.0,58769.0,1.14860937]
[1724038611914,0.002822,58770.0,58769.0,1.14960937]
[1724038612764,0.002822,58770.0,58769.0,0.50061483]
[1724038613155,0.002822,58770.0,58769.0,0.73883483]
[1724038613358,0.002822,58770.0,58769.0,0.50061483]
[1724038614473,0.002822,58770.0,58769.0,0.73883483]
[1724038615508,0.002822,58770.0,58769.0,0.50061483]
[1724038616540,0.002822,58770.0,58769.0,0.35921483]
[1724038623191,0.002822,58770.0,58769.0,0.74093483]
[1724038623534,0.002822,58770.0,58769.0,0.91348937]
[1724038623709,0.002822,58770.0,58769.0,1.25370937]
[1724038623918,0.002822,58770.0,58769.0,1.25070937]
[1724038627567,0.002822,58770.0,58769.0,1.26065509]
[1724038634384,0.002822,58770.0,58769.0,1.26747209]
[1724038634590,0.002822,58770.0,58769.0,1.26065509]
[1724038635621,0.001822,58770.0,58769.0,1.25965509]
[1724038637121,0.002822,58770.0,58769.0,1.26565509]
[1724038637735,0.002822,58770.0,58769.0,0.70243483]
[1724038637973,0.002822,58770.0,58769.0,0.60243483]
[1724038639933,0.002822,58770.0,58769.0,0.00688483]
[1724038642155,0.002822,58770.0,58769.0,0.12599483]